Cogmind - Beta 13 @@@ ROGUE MODE // 2024.07.10 @ 12:55:00 Player: ThatBishHoly Result: Destroyed by G-50 Soldier with Heavy Laser Performance ------------- Evolutions (2) 1000 Regions Visited (4) 800 Robots Destroyed (19) 95 Value Destroyed (441) 441 Prototype IDs (0) 0 Alien Tech Used (0) 0 Bonus (0) 0 TOTAL SCORE: 2336 Bonus ------- None Cogmind --------- Core Integrity 0/550 Matter 264/300 Energy 99/100 System Corruption 0% Temperature Cool (18) Movement Core (50) Location -8/Materials Parts ------- > --- POWER (1) -------- (None) > --- PROPULSION (4) --- (None) > --- UTILITY (4) ------ Signal Interpreter > --- WEAPON (2) ------- (None) > --- INVENTORY (5) ---- Deuterium Engine Medium Matter Pod (100) Mining Laser Peak State ------------ > --- POWER ------------ Light Ion Engine > --- PROPULSION ------- Wheel Wheel Wheel Wheel > --- UTILITY ---------- Signal Interpreter Tractor Beam > --- WEAPON ----------- Autogun Plasma Flamer > --- INVENTORY -------- Medium Matter Pod Sensor Array Assault Rifle Assault Rifle [Rating: 14] Favorites ----------- Power Light Ion Engine Engine Light Ion Engine Propulsion Wheel Leg Aluminum Leg Wheel Wheel Flight Unit Flight Unit Utility Signal Interpreter Device Sensor Array Storage Small Matter Pod Processor Signal Interpreter Weapon Assault Rifle Energy Gun Heavy EM Pulse Gun Ballistic Gun Assault Rifle Special Weapon Mining Laser Impact Weapon Flail Build | -11 -10 -10 -9 -8 ------- Run | Yrd Mat Min Mat Mat Slots Evolved 4 | . . . 2 2 Power . | . . . . . Propulsion 2 | . . . 2 . Utility 2 | . . . . 2 Weapon . | . . . . . Parts Attached 32 | 3 8 4 13 4 Power 3 | 1 1 . . 1 Engine 3 | 1 1 . . 1 Core . | . . . . . Reactor . | . . . . . Propulsion 13 | . 4 3 6 . Treads . | . . . . . Leg 2 | . 2 . . . Wheel 8 | . 2 3 3 . Hover . | . . . . . Flight 3 | . . . 3 . Utility 4 | . 3 . 1 . Device 2 | . 1 . 1 . Storage 1 | . 1 . . . Processor 1 | . 1 . . . Hackware . | . . . . . Protection . | . . . . . Artifact . | . . . . . Weapon 12 | 2 . 1 6 3 Energy Gun 4 | . . . 2 2 Energy Cannon . | . . . . . Ballistic Gun 5 | 2 . . 2 1 Ballistic Cannon . | . . . . . Launcher . | . . . . . Special Weapon 2 | . . 1 1 . Impact Weapon 1 | . . . 1 . Slashing Weapon . | . . . . . Piercing Weapon . | . . . . . Special Melee Weapon . | . . . . . Unidentified Prototypes . | . . . . . Parts Lost 19 | . 1 . 9 9 Power 3 | . 1 . 1 1 Propulsion 7 | . . . 4 3 Utility 2 | . . . 1 1 Weapon 7 | . . . 3 4 Highest Loss Streak 9 | . 1 . 8 9 To Critical Strikes 1 | . . . 1 . Average Slot Usage (%) 76 | . 81 100 74 36 Engine 7 | . 13 14 4 3 Leg 4 | . 16 . . . Wheel 15 | . 11 28 17 . Flight 7 | . . . 10 11 Device 7 | . . 14 10 3 Storage 1 | . 4 . . . Processor 9 | . 5 14 11 9 Energy Gun 4 | . . . 6 5 Ballistic Gun 11 | . 28 21 4 1 Special Weapon 6 | . . 7 8 2 Naked Turns . | . . . . . Heaviest Build 16 | 7 8 9 10 16 Greatest Support 40 | 3 20 20 40 12 Greatest Overweight (x) 2 | 2 . . 1 2 Average Overweight (x) . | 1 . . . . Largest Inventory Capacity 5 | 5 5 5 5 5 Average Capacity 5 | 5 5 5 5 5 Most Carried 5 | 3 5 5 5 5 Average Carried 2 | 1 . 4 3 3 Final Capacity 5 | 5 5 5 5 5 Final Carried 5 | 2 5 5 4 3 Class Distribution -------------------- 79% | Mutant 20% | Scavenger-Mutant Dominant Class ---------------- Mutant | -10/Materials Mutant | -10/Mines Mutant | -9/Materials Mutant | -8/Materials Resources | -11 -10 -10 -9 -8 ----------- Run | Yrd Mat Min Mat Mat Matter Collected 707 | 182 278 28 219 . Remotely 143 | . 55 21 67 . Salvage Created 491 | . 230 21 192 48 Parts 46 | . 22 5 16 3 Haulers Intercepted . | . . . . . Recyclers Shooed 4 | . 1 1 2 . Parts Field Recycled . | . . . . . Retrieved Matter . | . . . . . Parts Self-Destructed . | . . . . . Prevented . | . . . . . Kills | -11 -10 -10 -9 -8 ------- Run | Yrd Mat Min Mat Mat Combat Hostiles Destroyed 15 | . 7 . 7 1 Melee 1 | . . . 1 . Guns 12 | . 7 . 4 1 Classes Destroyed 4 | . 3 . 1 . Worker 4 | . 1 2 1 . Swarmer 5 | . 3 . 2 . Grunt 9 | . 4 . 4 1 Sentry 1 | . . . 1 . Best Kill Streak 5 | . 5 2 4 1 Combat Bots Only 5 | . 5 . 4 1 Max Kills in Single Turn 1 | . 1 1 1 1 Gunslinging . | . . . . . Exploded . | . . . . . Melee 1 | . . . 1 . Uniques/NPCs Destroyed . | . . . . . Combat | -11 -10 -10 -9 -8 -------- Run | Yrd Mat Min Mat Mat Hostile Shots Fired 207 | . 26 1 96 84 Missed 51 | . 7 . 25 19 Damage Taken 2087 | . 202 12 845 1028 Core 838 | . 33 12 231 562 Absorbed by Shields . | . . . . . Core Remaining (%) 74 | 100 . 82 42 . Volleys Fired 82 | . 18 4 54 6 Largest 2 | . 2 2 2 2 Hottest 123 | . 40 120 123 90 Shots Fired 118 | . 36 7 65 10 Gun 89 | . 36 6 37 10 Cannon . | . . . . . Launcher . | . . . . . Special 29 | . . 1 28 . Kinetic 64 | . 36 6 18 4 Thermal 50 | . . 1 47 2 Explosive . | . . . . . Electromagnetic 4 | . . . . 4 Robot Hit Streak 8 | . 5 4 5 8 Robot Miss Streak 3 | . 3 3 3 1 Penetration Max . | . . . . . Secondary Targets 1 | . 1 . . . Max Gunslinging Chain 1 | . 1 . . . Shots Hit Robots 72 | . 21 4 39 8 Core Hits 27 | . 12 2 10 3 Critical Kills . | . . . . . Critical Parts Destroyed 3 | . . . 3 . Critical Strikes 4 | . . . 4 . Burn 1 | . . . 1 . Smash 3 | . . . 3 . Melee Attacks 13 | . . . 13 . Impact 13 | . . . 13 . Slashing . | . . . . . Piercing . | . . . . . Sneak Attacks . | . . . . . Combat Hostiles . | . . . . . Follow-up Attacks . | . . . . . Damage Inflicted 1239 | . 292 49 773 125 Guns 838 | . 292 49 383 114 Cannons . | . . . . . Explosions . | . . . . . Melee 298 | . . . 298 . Ramming 11 | . . . . 11 Kinetic 572 | . 292 49 194 37 Thermal 310 | . . . 281 29 Explosive . | . . . . . Electromagnetic 48 | . . . . 48 Impact 298 | . . . 298 . Slashing . | . . . . . Piercing . | . . . . . Highest Corruption . | . . . . . Average Corruption . | . . . . . Corruption Purged . | . . . . . Corruption Blocked . | . . . . . Overload Shots . | . . . . . Overflow Damage 95 | . . . 95 . Projectiles 3 | . . . 3 . Explosions . | . . . . . Melee 92 | . . . 92 . Knockbacks 2 | . . . 2 . Impact 2 | . . . 2 . Kinetic . | . . . . . Secondary . | . . . . . Self-Inflicted Damage 5 | . . . . 5 Shots . | . . . . . Rammed 3 | . . . . 3 Targets Rammed 4 | . 1 . . 3 Kicked 1 | . 1 . . . Crushed . | . . . . . Highest Temperature 362 | . 6 60 362 111 Average Temperature 93 | . 5 38 111 42 Received Heat Transfer 1080 | . 102 6 405 567 Siege Activations . | . . . . . Robots Corrupted . | . . . . . Combat Hostiles . | . . . . . Parts Fried 1 | . . . 1 . Impact Corruptions 4 | . . . 4 . Robots Melted . | . . . . . Combat Hostiles . | . . . . . Parts Melted . | . . . . . Heat Transferred 1238 | . . . 1164 74 Parts Sabotaged . | . . . . . Parts Stolen . | . . . . . Parts Stripped . | . . . . . Power Chain Reactions . | . . . . . Alert | -11 -10 -10 -9 -8 ------- Run | Yrd Mat Min Mat Mat Peak Influence 232 | . 201 88 232 20 Initial 78 | . . 78 33 . Average 80 | . 63 87 100 1 Maximum Alert Level 1 | . 1 . 1 . Low Security (%) 95 | 100 84 100 99 100 Level 1 4 | . 15 . . . Level 2 . | . . . . . Level 3 . | . . . . . Level 4 . | . . . . . Level 5 . | . . . . . High Security . | . . . . . Max Security . | . . . . . Squads Dispatched 3 | . 1 . 1 1 Investigation 2 | . 1 . 1 . Extermination . | . . . . . Reinforcement 1 | . . . . 1 Assault . | . . . . . Garrison . | . . . . . Intercept . | . . . . . Searches Triggered . | . . . . . Construction Impeded . | . . . . . Haulers Reinforced . | . . . . . Active Scanning Responses . | . . . . . Cargo Convoy Interrupts . | . . . . . Stealth | -11 -10 -10 -9 -8 --------- Run | Yrd Mat Min Mat Mat Distress Signals 2 | . 1 . 1 . Communications Jammed . | . . . . . Distress Signals . | . . . . . Times Spotted 34 | . 8 2 15 9 Peak Tracking Total 9 | . 3 2 5 9 Tactical Retreats 3 | . 1 . 2 . Traps | -11 -10 -10 -9 -8 ------- Run | Yrd Mat Min Mat Mat Traps Triggered . | . . . . . Indirectly . | . . . . . Trap Hack Attempts . | . . . . . Triggered . | . . . . . Disarmed . | . . . . . Reprogrammed . | . . . . . Reused . | . . . . . Traps Extracted . | . . . . . Installed . | . . . . . Triggered . | . . . . . Machines | -11 -10 -10 -9 -8 ---------- Run | Yrd Mat Min Mat Mat Machines Disabled 1 | . . . 1 . Max in Single Turn 1 | . . . 1 . Machines Repaired . | . . . . . Machines Dismantled . | . . . . . Machines Sabotaged . | . . . . . Overloaded Fab Kills . | . . . . . Hacking | -11 -10 -10 -9 -8 --------- Run | Yrd Mat Min Mat Mat Machines Accessed 4 | . 1 . 3 . Terminals 4 | . 1 . 3 . Fabricators . | . . . . . Repair Stations . | . . . . . Recycling Units . | . . . . . Scanalyzers . | . . . . . Garrison Access . | . . . . . Total Hacks 10 | . 2 . 8 . Successful 4 | . . . 4 . Failed 6 | . 2 . 4 . Catastrophic 2 | . 1 . 1 . Database Lockouts . | . . . . . Manual . | . . . . . Terminals 10 | . 2 . 8 . Fabricators . | . . . . . Repair Stations . | . . . . . Recycling Units . | . . . . . Scanalyzers . | . . . . . Garrison Access . | . . . . . Terminal Hacks 4 | . . . 4 . Robot Analysis 1 | . . . 1 . Emergency Access Points 1 | . . . 1 . Terminal Index 1 | . . . 1 . Zone Layout 1 | . . . 1 . Fabricator Hacks . | . . . . . Repair Station Hacks . | . . . . . Recycling Unit Hacks . | . . . . . Scanalyzer . | . . . . . Garrison Access Hacks . | . . . . . Unauthorized Hacks . | . . . . . Terminals . | . . . . . Fabricators . | . . . . . Repair Stations . | . . . . . Recycling Units . | . . . . . Scanalyzers . | . . . . . Garrison Access . | . . . . . Data Cores Recovered . | . . . . . Used . | . . . . . Hacking Detections 4 | . 1 . 3 . Full Trace Events 2 | . 1 . 1 . Feedback Events . | . . . . . Feedback Blocked . | . . . . . Robot Schematics Acquired . | . . . . . Robots Built . | . . . . . Authchips . | . . . . . Time . | . . . . . Total Robot Build Rating . | . . . . . Part Schematics Acquired . | . . . . . Parts Built . | . . . . . Authchips . | . . . . . Time . | . . . . . Total Part Build Rating . | . . . . . Parts Repaired . | . . . . . Time . | . . . . . Parts Recycled . | . . . . . Recycled Matter . | . . . . . Retrieved Matter . | . . . . . Retrieved Components . | . . . . . Parts Scanalyzed . | . . . . . Part Schematics Acquired . | . . . . . Parts Damaged . | . . . . . Bothacking | -11 -10 -10 -9 -8 ------------ Run | Yrd Mat Min Mat Mat Used RIF Installer . | . . . . . Robots Hacked . | . . . . . Non-combat . | . . . . . Combat . | . . . . . Robot Hacks Applied . | . . . . . Relay Couplers Released . | . . . . . Fabnet Peak Effective % . | . . . . . Robots Rewired . | . . . . . Allies Hacked . | . . . . . Hacks Repelled . | . . . . . Allies | -11 -10 -10 -9 -8 -------- Run | Yrd Mat Min Mat Mat Total Allies . | . . . . . Largest Group . | . . . . . Highest-Rated Group . | . . . . . Highest-Rated Ally . | . . . . . Total Orders . | . . . . . Ally Attacks . | . . . . . Total Damage . | . . . . . Kills . | . . . . . Allies Corrupted . | . . . . . Allies Melted . | . . . . . Intel | -11 -10 -10 -9 -8 ------- Run | Yrd Mat Min Mat Mat Robot Analysis Total 1 | . . . 1 . Derelict Logs Recovered . | . . . . . Drone Launches . | . . . . . Drone Recoveries . | . . . . . Exploration | -11 -10 -10 -9 -8 ------------- Run | Yrd Mat Min Mat Mat Turns Passed 1390 | 57 329 116 809 79 Spaces Moved 998 | 40 238 120 532 68 Core 94 | 40 . . 29 25 Treads . | . . . . . Legs 153 | . 153 . . . Wheels 499 | . 85 120 294 . Hover . | . . . . . Flight 252 | . . . 209 43 Fastest Speed 32 | 50 80 80 34 32 Average Speed 86 | 125 105 80 78 68 Slowest Speed 200 | 150 120 80 120 200 Overloaded Moves . | . . . . . Propulsion Burnouts . | . . . . . Robots Hopped 4 | . . . 4 . Cave-ins Triggered . | . . . . . Exploration Rate (%) 22 | 4 32 28 38 8 Regions Visited 4 Branch Regions 1 Pre-discovered Areas . | . . . . . Known Exits Taken 3 | . 1 1 1 . Unknown Exits Taken 1 | 1 . . . . Scrap Searched . | . . . . . Spaces Dug . | . . . . . Terrain Destroyed 1 | . . . 1 . Melee . | . . . . . Projectile 1 | . . . 1 . AOE . | . . . . . Terrain Rammed . | . . . . . Walls Destroyed . | . . . . . Machines Disabled . | . . . . . Actions | -11 -10 -10 -9 -8 --------- Run | Yrd Mat Min Mat Mat Total 1345 | 47 278 132 798 90 Wait 184 | . . . 177 7 Move 986 | 39 237 119 523 68 Hop 4 | . . . 4 . Pick Up 31 | 5 11 2 11 2 Fast Attach . | . . . . . Attach 20 | 3 5 . 9 3 Detach . | . . . . . Swap 12 | . 3 4 4 1 Drop 9 | . 3 3 3 . Fire 82 | . 18 4 54 6 Melee 13 | . . . 13 . Ram 3 | . . . . 3 Kick 1 | . 1 . . . Crush . | . . . . . Escape Stasis . | . . . . . Rewire . | . . . . . Trap . | . . . . . Miscellaneous . | . . . . . Route ------- -11/Scrapyard -10/Materials -10/Mines -9/Materials (discovered 2 exits: *Mat / *Min) -8/Materials History --------- Turn | Location | Event 7 | -11/Scrapyard | Discovered new exit (range 16) 58 | -11/Scrapyard | Entered Materials 317 | -10/Materials | Build established: Mutant 331 | -10/Materials | Discovered new exit (range 9) 385 | -10/Materials | Identified exit to Mines 387 | -10/Materials | Entered Mines 438 | -10/Mines | A weapon hastily lodged in a ceiling crevice suddenly fell to the ground 488 | -10/Mines | Assembled infested the area 502 | -10/Mines | Discovered new exit (range 3) 502 | -10/Mines | Identified exit to Materials 503 | -10/Mines | Entered Materials 503 | -9/Materials | Evolved 2 slots: Propulsion x2 881 | -9/Materials | Lost 8 parts (1p4n1u2w) 903 | -9/Materials | Core integrity fell below 50% 938 | -9/Materials | Discovered new exit (range 14) 953 | -9/Materials | Identified exit to Mines 1301 | -9/Materials | Discovered new exit (range 13) 1311 | -9/Materials | Identified exit to Materials 1312 | -9/Materials | Entered another Materials area 1312 | -8/Materials | Evolved 2 slots: Utility x2 1383 | -8/Materials | Core integrity fell below 50% 1388 | -8/Materials | Core integrity fell below 20% 1391 | -8/Materials | Destroyed by G-50 Soldier with Heavy Laser Last Messages --------------- 01344_ Flight Unit destroyed. 01344_ Hvy. EM Pulse Gun destroyed. 01348_ VTOL Module destroyed. 01353_ T-07 Excavator is excavating. 01354_ Flight Unit destroyed. 01355_ Deuterium Engine destroyed. 01356_ R-06 Scavenger collects Aluminum Leg. 01357_ T-07 Excavator is excavating. 01373_ Particle Gun destroyed. 01374_ T-07 Excavator is excavating. 01376_ Assault Rifle destroyed. 01378_ T-07 Excavator is excavating. 01381_ Slammed into G-47 Trooper. 01381_ Destabilizing: System interference. 01381_ Signal Interpreter temporarily disabled. 01382_ T-07 Excavator is excavating. 01382_ Slammed into G-47 Trooper. 01386_ T-07 Excavator is excavating. 01387_ Acquired Deuterium Engine. 01388_ U-05 Engineer lays Concrete. Map ----- +----------------------------------------------------+ | ?????????????????????????????????????????????????? | | ?????????????????????????????????????????????????? | | ?????????????????????????????????????????????????? | | ?????????????????????????????????????????????????? | | ?????????????????????????????????????????????????? | | ?????????????????????????????????????????????????? | | ?????????????????????????????????????????????????? | | ?????????????????????????????????????????????????? | | ?????????????????????????????????????????????????? | | ?????????????????????????????????????????????????? | | ?????????????????????????????????????????????????? | | ?????????????????????????????????????????????????? | | ?????????????????????????????????????????????????? | | ?????????????????????????????????????????????????? | | ???????????????????? ??????????????????????????? | | ???????????????????? ?????????????????????????? | | ???????????????????# #??????????? ????? ?????? | | ???????????????????# #??????????? #???# ????? | | ???????????????????# #??????????? #???# ????? | | ???????????????????# #??????????# #???# #????? | | ???????????????????# #??????????+ #???# #????? | | ???????????????????# #??????????# #???# #????? | | ???????????????????# ############ ##??# #????? | | ???????????????????# #??# #????? | | ???????????????????# ^ #### #????? | | ?????????????####### ""@ % "" # #????? | | ???????????? ;^ T" r G"# #????? | | ???????????????"" # % "" # #????? | | ???????????????????# !!! ##?# #????? | | ???????????????????# * !!! #### #####? | | ???????????????????# !! #? | | ???????????????????# gY #? | | ???????????????????# g g #? | | ???????????????????#####"gg### ######+###########? | | ???????????????????????### #????????????????? | | ?????????????????????????# ##????????????????? | | ?????????????????????????# ##?????????????????? | | ?????????????????????????# t ##??????????????????? | | ??????????????????????????####???????????????????? | | ?????????????????????????????????????????????????? | | ?????????????????????????????????????????????????? | | ?????????????????????????????????????????????????? | | ?????????????????????????????????????????????????? | | ?????????????????????????????????????????????????? | | ?????????????????????????????????????????????????? | | | | | | | | | | | +----------------------------------------------------+ Best States ------------- Heat Dissipation 31 Energy Generation 14 Energy Capacity 275 Matter Stores 300 Matter Capacity 350 Sight Range 16 Robot Scan Range 14 Terrain Scan Density 10 Evasion (%) 63 Item Schematics ----------------- None Robot Schematics ------------------ None Fabricated ------------ Nothing Alien Tech Used ----------------- None Achievements -------------- None Challenges ------------ None Game ------ Seed TimingSurgeCleaver Manual? 0 Play Time 00:20:15 Cumulative 43.4 hours Start 2024.07.10 @ 12:31:06 End 2024.07.10 @ 12:55:00 Sessions 1 Manual Loads 0 Difficulty Rogue Special Mode None Game No. 124 Rogue 124 Adventurer 0 Explorer 0 Win Type - Total 0 Types 0/0/0/0/0/0/0/0/0 Lore% 19 Gallery% 36 Achievement% 25 Wizard Run 0 Options --------- Layout 0 ASCII 0 Keyboard 0 Movement Arrows Keybinds 0 Fullscreen 1 Font 12/Smallcaps Map View 38x28 Zoom Use 100% Tactical HUD 1 Map Filters NONE Filters NONE Steam SD RUN: 619da012-b54c-44bd-be94-c5838a6e7a84